fUSD/lending_fUSD_20250812
["ID","MTS","AMOUNT","RATE_DAILY","PERIOD"]
[378827671,1755039054315,-400.0,0.00049589,120]
[378827672,1755039054327,-400.0,0.00049589,120]
[378827673,1755039054339,-845.94,0.00049589,120]
[378827674,1755039054350,-400.0,0.00049589,120]
[378827675,1755039054360,-400.0,0.00049589,120]
[378827676,1755039054370,-547.65004182,0.00049589,120]
[378827677,1755039054379,-400.0,0.00049589,120]
[378827678,1755039054388,-395.23531594,0.00049589,120]
[378827679,1755039054397,-462.34,0.00049589,120]
[378827680,1755039054406,-400.0,0.00049589,120]
[378827681,1755039054415,-400.0,0.00049589,120]
[378827682,1755039054425,-400.0,0.00049589,120]
[378827683,1755039054434,-400.0,0.00049589,120]
[378827684,1755039054443,-400.0,0.00049589,120]
[378827685,1755039054452,-378.31,0.00049589,120]
[378827686,1755039054461,-400.0,0.00049589,120]
[378827687,1755039054470,-400.0,0.00049589,120]
[378827688,1755039054479,-400.0,0.00049589,120]
[378827689,1755039054488,-452.76,0.00049589,120]
[378827690,1755039054497,-400.0,0.00049589,120]
[378827691,1755039054507,-400.0,0.00049589,120]
[378827692,1755039054516,-400.0,0.00049589,120]
[378827693,1755039054525,-400.0,0.00049589,60]
[378827694,1755039054534,-400.0,0.00049589,120]
[378827695,1755039054544,-400.0,0.00049589,120]
[378827696,1755039054553,-400.0,0.00049589,120]
[378827697,1755039054562,-408.85,0.00049589,120]
[378827698,1755039054571,-400.0,0.00049589,120]
[378827699,1755039054580,-400.0,0.00049589,120]
[378827700,1755039054589,-400.0,0.00049589,120]
[378827701,1755039054598,-389.50060953,0.00049589,120]
[378827702,1755039054607,-400.0,0.00049589,120]
[378827703,1755039054617,-400.0,0.00049589,120]
[378827704,1755039054626,-476.17,0.00049589,120]
[378827705,1755039054636,-400.0,0.00049589,120]
[378827706,1755039054646,-400.0,0.00049589,120]
[378827707,1755039054655,-400.0,0.00049589,120]
[378827708,1755039054664,-675.52,0.00049589,120]
[378827709,1755039054674,-400.0,0.00049589,120]
[378827710,1755039054683,-254.876302,0.00049589,120]
[378827711,1755039054691,-713.6,0.00049589,120]
[378827712,1755039054700,-400.0,0.00049589,120]
[378827713,1755039054710,-452.03,0.00049589,120]
[378827714,1755039054719,-400.0,0.00049589,120]
[378827715,1755039054728,-400.0,0.00049589,120]
[378827716,1755039054737,-400.0,0.00049589,120]
[378827717,1755039054746,-400.0,0.00049589,120]
[378827718,1755039054755,-400.0,0.00049589,120]
[378827719,1755039054765,-423.83,0.00049589,120]
[378827720,1755039054774,-400.0,0.00049589,120]
[378827721,1755039054784,-400.0,0.00049589,120]
[378827722,1755039054794,-496.95,0.00049589,120]
[378827723,1755039054803,-400.0,0.00049589,120]
[378827724,1755039054812,-400.0,0.00049589,120]
[378827725,1755039054821,-491.31,0.00049589,120]
[378827726,1755039054831,-975.03,0.00049589,120]
[378827727,1755039054840,-400.0,0.00049589,120]
[378827728,1755039054849,-462.21615038,0.00049589,120]
[378827729,1755039054859,-400.0,0.00049589,120]
[378827730,1755039054868,-880.04,0.00049589,120]
[378827731,1755039054877,-400.0,0.00049589,120]
[378827732,1755039054888,-499.12,0.00049589,120]
[378827733,1755039054897,-624.09,0.00049589,120]
[378827734,1755039054908,-265.06262544,0.00049589,120]
[378827735,1755039054917,-400.0,0.00049589,120]
[378827736,1755039054926,-400.0,0.00049589,120]
[378827737,1755039054936,-275.92274702,0.00049589,120]
[378827738,1755039054945,-476.57,0.00049589,120]
[378827739,1755039054954,-400.0,0.00049589,120]
[378827740,1755039054963,-400.0,0.00049589,120]
[378827741,1755039054972,-458.31,0.00049589,120]
[378827742,1755039054981,-400.0,0.00049589,120]
[378827743,1755039054995,-756.24,0.00049589,120]
[378827744,1755039055010,-548.47,0.00049589,120]
[378827745,1755039055019,-400.0,0.00049589,120]
[378827746,1755039055032,-400.0,0.00049589,120]
[378827747,1755039055041,-400.0,0.00049589,120]
[378827748,1755039055050,-402.79,0.00049589,120]
[378827749,1755039055058,-445.06,0.00049589,120]
[378827750,1755039055068,-624.4,0.00049589,120]
[378827751,1755039055078,-400.0,0.00049589,120]
[378827752,1755039055087,-400.0,0.00049589,120]
[378827753,1755039055103,-400.0,0.00049589,120]
[378827754,1755039055115,-400.0,0.00049589,120]
[378827755,1755039055124,-531.5,0.00049589,120]
[378827756,1755039055133,-517.0,0.00049589,120]
[378827757,1755039055143,-400.0,0.00049589,120]
[378827758,1755039055152,-400.0,0.00049589,120]
[378827759,1755039055161,-400.0,0.00049589,120]
[378827760,1755039055170,-400.0,0.00049589,120]
[378827761,1755039055179,-630.59,0.00049589,120]
[378827762,1755039055188,-549.37,0.00049589,120]
[378827763,1755039055197,-400.0,0.00049589,120]
[378827764,1755039055206,-151.0,0.00049589,120]
[378827765,1755039055215,-158.604881,0.00049589,120]
[378827766,1755039055224,-400.0,0.00049589,120]
[378827767,1755039055233,-151.0,0.00049589,120]
[378827768,1755039055242,-400.0,0.00049589,120]
[378827769,1755039055250,-400.0,0.00049589,120]
[378827770,1755039055259,-483.65,0.00049589,120]
[378827771,1755039055268,-400.0,0.00049589,120]
[378827772,1755039055278,-409.16,0.00049589,120]
[378827773,1755039055286,-400.0,0.00049589,120]
[378827774,1755039055295,-400.0,0.00049589,120]
[378827775,1755039055304,-491.15,0.00049589,120]
[378827776,1755039055313,-151.0,0.00049589,120]
[378827777,1755039055322,-498.15066259,0.00049589,120]
[378827778,1755039055330,-400.0,0.00049589,120]
[378827779,1755039055339,-1023.82,0.00049589,120]
[378827780,1755039055349,-400.0,0.00049589,120]
[378827781,1755039055357,-400.0,0.00049589,120]
[378827782,1755039055366,-400.0,0.00049589,120]
[378827783,1755039055375,-492.06,0.00049589,120]
[378827784,1755039055384,-400.0,0.00049589,120]
[378827785,1755039055394,-400.0,0.00049589,120]
[378827786,1755039055403,-1158.4,0.00049589,120]
[378827787,1755039055412,-400.0,0.00049589,120]
[378827788,1755039055421,-786.43,0.00049589,120]
[378827789,1755039055429,-433.97,0.00049589,120]
[378827790,1755039055438,-400.0,0.00049589,120]
[378827791,1755039055447,-151.0,0.00049589,120]
[378827792,1755039055457,-400.0,0.00049589,120]
[378827793,1755039055466,-400.0,0.00049589,120]
[378827794,1755039055476,-400.0,0.00049589,120]
[378827795,1755039055485,-455.1,0.00049589,120]
[378827796,1755039055494,-400.0,0.00049589,120]
[378827797,1755039055503,-400.0,0.00049589,120]
[378827798,1755039055513,-601.07,0.00049589,120]
[378827799,1755039055523,-400.0,0.00049589,120]
[378827800,1755039055532,-443.64,0.00049589,120]
[378827801,1755039055541,-400.0,0.00049589,120]
[378827802,1755039055551,-642.14,0.00049589,120]
[378827803,1755039055560,-151.0,0.00049589,120]
[378827804,1755039055569,-657.96,0.00049589,120]
[378827805,1755039055578,-400.0,0.00049589,120]
[378827806,1755039055587,-253.415025,0.00049589,120]
[378827807,1755039055596,-400.0,0.00049589,120]
[378827808,1755039055605,-740.6,0.00049589,120]
[378827809,1755039055613,-835.73,0.00049589,120]
[378827810,1755039055623,-300.0,0.00049589,120]
[378827811,1755039055632,-400.0,0.00049589,120]
[378827812,1755039055641,-418.16,0.00049589,120]
[378827813,1755039055650,-400.0,0.00049589,120]
[378827814,1755039055659,-400.0,0.00049589,120]
[378827815,1755039055668,-400.0,0.00049589,120]
[378827816,1755039055686,-1222.36,0.00049589,120]
[378827817,1755039055696,-400.0,0.00049589,120]
[378827818,1755039055705,-250.323445,0.00049589,120]
[378827819,1755039055715,-400.0,0.00049589,120]
[378827820,1755039055724,-400.0,0.00049589,120]
[378827821,1755039055733,-400.0,0.00049589,120]
[378827822,1755039055743,-434.04,0.00049589,120]
[378827823,1755039055752,-400.39,0.00049589,120]
[378827824,1755039055761,-400.0,0.00049589,120]
[378827825,1755039055770,-400.0,0.00049589,120]
[378827826,1755039055780,-400.0,0.00049589,120]
[378827827,1755039055790,-844.17,0.00049589,120]
[378827828,1755039055800,-400.0,0.00049589,120]
[378827829,1755039055809,-400.0,0.00049589,120]
[378827830,1755039055819,-531.55,0.00049589,120]
[378827831,1755039055828,-444.56,0.00049589,30]
[378827832,1755039055837,-400.0,0.00049589,120]
[378827833,1755039055847,-400.0,0.00049589,120]
[378827834,1755039055856,-711.76,0.00049589,120]
[378827835,1755039055866,-400.0,0.00049589,120]
[378827836,1755039055876,-733.39,0.00049589,120]
[378827837,1755039055886,-516.47,0.00049589,120]
[378827838,1755039055896,-400.0,0.00049589,120]
[378827839,1755039055906,-400.0,0.00049589,120]
[378827840,1755039055916,-400.0,0.00049589,120]
[378827841,1755039055926,-400.0,0.00049589,120]
[378827842,1755039055937,-400.89,0.00049589,120]
[378827843,1755039055947,-400.0,0.00049589,120]
[378827844,1755039055958,-435.18,0.00049589,120]
[378827845,1755039055968,-400.0,0.00049589,120]
[378827846,1755039055978,-400.0,0.00049589,120]
[378827847,1755039055987,-459.78,0.00049589,120]
[378827848,1755039055997,-400.0,0.00049589,120]
[378827849,1755039056007,-400.0,0.00049589,120]
[378827850,1755039056016,-442.33,0.00049589,120]
[378827851,1755039056030,-402.42,0.00049589,120]
[378827852,1755039056047,-400.0,0.00049589,120]
[378827853,1755039056058,-400.0,0.00049589,120]
[378827854,1755039056069,-446.04,0.00049589,120]
[378827855,1755039056078,-1163.0,0.00049589,120]
[378827856,1755039056088,-151.0,0.00049589,120]
[378827857,1755039056098,-400.0,0.00049589,120]
[378827858,1755039056108,-400.0,0.00049589,120]
[378827859,1755039056117,-210.37342793,0.00049589,120]
[378827860,1755039056127,-751.93,0.00049589,120]
[378827861,1755039056138,-400.0,0.00049589,120]
[378827862,1755039056148,-400.0,0.00049589,120]
[378827863,1755039056157,-400.0,0.00049589,120]
[378827864,1755039056166,-592.27,0.00049589,120]
[378827865,1755039056176,-1151.08,0.00049589,120]
[378827866,1755039056185,-400.0,0.00049589,120]
[378827867,1755039056195,-400.0,0.00049589,120]
[378827868,1755039056204,-400.0,0.00049589,120]
[378827869,1755039056213,-400.0,0.00049589,120]
[378827870,1755039056223,-400.0,0.00049589,120]
[378827871,1755039056232,-400.0,0.00049589,120]
[378827872,1755039056242,-400.13,0.00049589,120]
[378827873,1755039056252,-853.23,0.00049589,120]
[378827874,1755039056261,-400.0,0.00049589,120]
[378827875,1755039056271,-400.0,0.00049589,120]
[378827876,1755039056280,-400.0,0.00049589,120]
[378827877,1755039056292,-400.0,0.00049589,120]
[378827878,1755039056301,-443.36,0.00049589,120]
[378827879,1755039056312,-601.14,0.00049589,120]
[378827880,1755039056323,-400.0,0.00049589,120]
[378827881,1755039056334,-507.39695123,0.00049589,120]
[378827882,1755039056344,-400.0,0.00049589,120]
[378827883,1755039056354,-400.0,0.00049589,120]
[378827884,1755039056365,-400.0,0.00049589,120]
[378827885,1755039056375,-658.02,0.00049589,120]
[378827886,1755039056391,-400.0,0.00049589,120]
[378827887,1755039056402,-400.0,0.00049589,120]
[378827888,1755039056413,-810.23,0.00049589,120]
[378827889,1755039056423,-899.34,0.00049589,120]
[378827890,1755039056435,-582.07,0.00049589,120]
[378827891,1755039056446,-234.78680991,0.00049589,120]
[378827892,1755039056457,-864.87,0.00049589,120]
[378827893,1755039056468,-400.0,0.00049589,120]
[378827894,1755039056479,-484.11,0.00049589,120]
[378827895,1755039056493,-400.0,0.00049589,120]
[378827896,1755039056503,-400.0,0.00049589,120]
[378827897,1755039056515,-400.0,0.00049589,120]
[378827898,1755039056526,-400.0,0.00049589,120]
[378827899,1755039056537,-400.0,0.00049589,120]
[378827900,1755039056548,-400.0,0.00049589,120]
[378827901,1755039056561,-841.86,0.00049589,120]
[378827902,1755039056572,-400.0,0.00049589,120]
[378827903,1755039056584,-400.0,0.00049589,120]
[378827904,1755039056596,-772.34,0.00049589,120]
[378827905,1755039056607,-469.57,0.00049589,120]
[378827906,1755039056619,-850.45,0.00049589,120]
[378827907,1755039056630,-400.0,0.00049589,120]
[378827908,1755039056646,-419.98,0.00049589,120]
[378827909,1755039056657,-400.0,0.00049589,120]
[378827910,1755039056668,-400.0,0.00049589,120]
[378827911,1755039056679,-722.54,0.00049589,120]
[378827912,1755039056690,-400.0,0.00049589,120]
[378827913,1755039056700,-400.0,0.00049589,120]
[378827914,1755039056713,-400.0,0.00049589,120]
[378827915,1755039056723,-849.05,0.00049589,120]
[378827916,1755039056733,-400.0,0.00049589,120]
[378827917,1755039056743,-426.63,0.00049589,120]
[378827918,1755039056753,-400.0,0.00049589,120]
[378827919,1755039056763,-546.67,0.00049589,120]
[378827920,1755039056773,-400.0,0.00049589,120]
[378827921,1755039056783,-400.0,0.00049589,120]
[378827922,1755039056793,-400.0,0.00049589,120]
[378827923,1755039056804,-400.0,0.00049589,120]
[378827924,1755039056813,-400.0,0.00049589,120]
[378827925,1755039056823,-400.0,0.00049589,120]
[378827926,1755039056833,-446.43,0.00049589,120]
[378827927,1755039056844,-400.0,0.00049589,120]
[378827928,1755039056854,-400.0,0.00049589,120]
[378827929,1755039056864,-400.0,0.00049589,120]
[378827930,1755039056875,-400.0,0.00049589,120]
[378827931,1755039056885,-400.0,0.00049589,120]
[378827932,1755039056897,-989.95,0.00049589,120]
[378827933,1755039056907,-411.29,0.00049589,120]
[378827934,1755039056917,-400.0,0.00049589,120]
[378827935,1755039056928,-981.48,0.00049589,120]
[378827936,1755039056938,-406.85,0.00049589,120]
[378827937,1755039056948,-400.0,0.00049589,120]
[378827938,1755039056957,-754.67,0.00049589,120]
[378827939,1755039056967,-400.0,0.00049589,120]
[378827940,1755039056976,-400.0,0.00049589,120]
[378827941,1755039056986,-653.2,0.00049589,120]
[378827942,1755039056995,-400.0,0.00049589,120]
[378827943,1755039057005,-400.0,0.00049589,120]
[378827944,1755039057015,-400.0,0.00049589,120]
[378827945,1755039057029,-182.17402461,0.00049589,120]
[378827946,1755039057039,-400.0,0.00049589,120]
[378827947,1755039057049,-499.32,0.00049589,120]
[378827948,1755039057059,-400.0,0.00049589,120]
[378827949,1755039057069,-400.0,0.00049589,120]
[378827950,1755039057080,-400.0,0.00049589,120]
[378827951,1755039057090,-400.0,0.00049589,120]
[378827952,1755039057100,-400.0,0.00049589,120]
[378827953,1755039057110,-187.99662396,0.00049589,120]
[378827954,1755039057122,-400.0,0.00049589,120]
[378827955,1755039057131,-704.97,0.00049589,120]
[378827956,1755039057141,-400.0,0.00049589,120]
[378827957,1755039057150,-400.0,0.00049589,120]
[378827958,1755039057160,-1211.33,0.00049589,120]
[378827959,1755039057170,-400.0,0.00049589,120]
[378827960,1755039057180,-400.0,0.00049589,120]
[378827961,1755039057189,-400.0,0.00049589,120]
[378827962,1755039057199,-630.48,0.00049589,120]
[378827963,1755039057208,-400.0,0.00049589,120]
[378827964,1755039057218,-400.0,0.00049589,120]
[378827965,1755039057228,-623.88,0.00049589,120]
[378827966,1755039057237,-400.0,0.00049589,120]
[378827967,1755039057247,-788.98,0.00049589,120]
[378827968,1755039057257,-400.0,0.00049589,120]
[378827969,1755039057266,-1240.98,0.00049589,120]
[378827970,1755039057276,-400.0,0.00049589,120]
[378827971,1755039057285,-446.95,0.00049589,120]
[378827972,1755039057295,-451.43,0.00049589,120]
[378827973,1755039057304,-400.0,0.00049589,120]
[378827974,1755039057314,-400.0,0.00049589,120]
[378827975,1755039057323,-554.73,0.00049589,120]
[378827976,1755039057333,-400.0,0.00049589,120]
[378827977,1755039057342,-400.0,0.00049589,120]
[378827978,1755039057351,-400.0,0.00049589,120]
[378827979,1755039057361,-400.0,0.00049589,120]
[378827980,1755039057370,-400.0,0.00049589,120]
[378827981,1755039057380,-400.0,0.00049589,120]
[378827982,1755039057390,-400.0,0.00049589,120]
[378827983,1755039057400,-801.36,0.00049589,120]
[378827984,1755039057409,-151.0,0.00049589,120]
[378827985,1755039057419,-400.0,0.00049589,120]
[378827986,1755039057428,-400.0,0.00049589,120]
[378827987,1755039057437,-400.0,0.00049589,120]
[378827988,1755039057447,-400.0,0.00049589,120]
[378827989,1755039057458,-151.0,0.00049589,120]
[378827990,1755039057467,-446.9,0.00049589,120]
[378827991,1755039057477,-462.42,0.00049589,120]
[378827992,1755039057487,-400.0,0.00049589,120]
[378827993,1755039057496,-400.0,0.00049589,120]
[378827994,1755039057507,-476.15,0.00049589,120]
[378827995,1755039057516,-400.0,0.00049589,120]
[378827996,1755039057526,-1970.95,0.00049589,120]
[378827997,1755039057535,-432.86601547,0.00049589,120]
[378827998,1755039057545,-400.0,0.00049589,120]
[378827999,1755039057554,-400.0,0.00049589,120]
[378828000,1755039057564,-400.0,0.00049589,120]
[378828001,1755039057574,-400.0,0.00049589,120]
[378828002,1755039057584,-400.0,0.00049589,120]
[378828003,1755039057593,-400.0,0.00049589,120]
[378828004,1755039057603,-400.0,0.00049589,120]
[378828005,1755039057612,-1530.25,0.00049589,120]
[378828006,1755039057622,-499.55,0.00049589,120]
[378828007,1755039057632,-400.0,0.00049589,120]
[378828008,1755039057646,-487.05983141,0.00049589,120]
[378828009,1755039057656,-400.0,0.00049589,120]
[378828010,1755039057666,-151.0,0.00049589,120]
[378828011,1755039057676,-400.0,0.00049589,120]
[378828012,1755039057685,-400.0,0.00049589,120]
[378828013,1755039057695,-400.0,0.00049589,120]
[378828014,1755039057704,-400.0,0.00049589,120]
[378828015,1755039057716,-400.0,0.00049589,120]
[378828016,1755039057726,-400.0,0.00049589,120]
[378828017,1755039057736,-400.0,0.00049589,120]
[378828018,1755039057746,-2569.52,0.00049589,120]
[378828019,1755039057755,-6215.23,0.00049589,120]
[378828020,1755039057765,-228.73239841,0.00049589,120]
[378828021,1755039057775,-400.0,0.00049589,120]
[378828022,1755039057785,-400.0,0.00049589,120]
[378828023,1755039057795,-400.0,0.00049589,120]
[378828024,1755039057804,-508.62,0.00049589,120]
[378828025,1755039057814,-400.0,0.00049589,120]
[378828026,1755039057824,-1845.36,0.00049589,120]
[378828027,1755039057833,-400.0,0.00049589,120]
[378828028,1755039057844,-400.0,0.00049589,120]
[378828029,1755039057853,-400.0,0.00049589,120]
[378828030,1755039057863,-1199.62,0.00049589,120]
[378828031,1755039057873,-721.44,0.00049589,120]
[378828032,1755039057883,-400.0,0.00049589,120]
[378828033,1755039057894,-288.63501612,0.00049589,120]
[378828034,1755039057904,-400.0,0.00049589,120]
[378828035,1755039057914,-400.0,0.00049589,120]
[378828036,1755039057928,-400.0,0.00049589,120]
[378828037,1755039057937,-400.0,0.00049589,120]
[378828038,1755039057947,-400.0,0.00049589,120]
[378828039,1755039057958,-465.58,0.00049589,120]
[378828040,1755039057968,-400.0,0.00049589,120]
[378828041,1755039057978,-400.0,0.00049589,120]
[378828042,1755039057988,-409.52,0.00049589,120]
[378828043,1755039057998,-1392.84,0.00049589,120]
[378828044,1755039058008,-1560.75,0.00049589,120]
[378828045,1755039058018,-400.0,0.00049589,120]
[378828046,1755039058029,-1318.25,0.00049589,120]
[378828047,1755039058042,-400.0,0.00049589,120]
[378828048,1755039058052,-151.0,0.00049589,120]
[378828049,1755039058062,-400.0,0.00049589,120]
[378828050,1755039058072,-230.460962,0.00049589,120]
[378828051,1755039058082,-400.0,0.00049589,120]
[378828052,1755039058092,-541.45,0.00049589,120]
[378828053,1755039058102,-400.0,0.00049589,120]
[378828054,1755039058333,-560.88,0.00049589,120]
[378828055,1755039058352,-629.03,0.00049589,120]
[378828056,1755039058362,-520.0,0.00049589,120]
[378828057,1755039058372,-400.0,0.00049589,120]
[378828058,1755039058382,-518.54,0.00049589,120]
[378828059,1755039058392,-1171.03,0.00049589,120]
[378828060,1755039058401,-835.88,0.00049589,120]
[378828061,1755039058411,-400.0,0.00049589,120]
[378828062,1755039058420,-12590.17,0.00049589,120]
[378828063,1755039058430,-400.0,0.00049589,120]
[378828064,1755039058439,-400.0,0.00049589,120]
[378828065,1755039058448,-151.0,0.00049589,120]
[378828066,1755039058458,-529.28,0.00049589,120]
[378828067,1755039058468,-400.0,0.00049589,120]
[378828068,1755039058477,-2480.98,0.00049589,120]
[378828069,1755039058487,-400.0,0.00049589,120]
[378828070,1755039058496,-1256.92,0.00049589,120]
[378828071,1755039058506,-1103.76,0.00049589,120]
[378828072,1755039058516,-400.0,0.00049589,120]
[378828073,1755039058526,-400.0,0.00049589,120]
[378828074,1755039058535,-955.17,0.00049589,120]
[378828075,1755039058545,-1637.2,0.00049589,120]
[378828076,1755039058554,-151.0,0.00049589,120]
[378828077,1755039058563,-400.0,0.00049589,120]
[378828078,1755039058573,-511.9,0.00049589,120]
[378828079,1755039058582,-217.610315,0.00049589,120]
[378828080,1755039058591,-555.76,0.00049589,120]
[378828081,1755039058600,-772.71,0.00049589,120]
[378828082,1755039058609,-400.0,0.00049589,120]
[378828083,1755039058618,-400.0,0.00049589,120]
[378828084,1755039058628,-400.0,0.00049589,120]
[378828085,1755039058637,-400.0,0.00049589,120]
[378828086,1755039058647,-965.47,0.00049589,120]
[378828087,1755039058657,-400.0,0.00049589,120]
[378828088,1755039058666,-904.77,0.00049589,120]
[378828089,1755039058676,-636.42,0.00049589,120]
[378828090,1755039058685,-400.0,0.00049589,120]
[378828091,1755039058695,-151.0,0.00049589,120]
[378828092,1755039058704,-400.0,0.00049589,120]
[378828093,1755039058714,-502.52,0.00049589,120]
[378828094,1755039058723,-618.5,0.00049589,120]
[378828095,1755039058732,-1210.48,0.00049589,120]
[378828096,1755039058741,-1213.03,0.00049589,120]
[378828097,1755039058750,-400.0,0.00049589,120]
[378828098,1755039058760,-400.0,0.00049589,120]
[378828099,1755039058769,-494.07,0.00049589,120]
[378828100,1755039058779,-400.0,0.00049589,120]
[378828101,1755039058788,-400.78,0.00049589,120]
[378828102,1755039058798,-400.0,0.00049589,120]
[378828103,1755039058808,-1148.51,0.00049589,120]
[378828104,1755039058817,-400.0,0.00049589,120]
[378828105,1755039058828,-1087.74,0.00049589,120]
[378828106,1755039058837,-400.0,0.00049589,120]
[378828107,1755039058847,-400.0,0.00049589,120]
[378828108,1755039058856,-400.0,0.00049589,120]
[378828109,1755039058866,-400.0,0.00049589,120]
[378828110,1755039058875,-1005.58,0.00049589,120]
[378828111,1755039058885,-1040.53,0.00049589,120]
[378828112,1755039058895,-916.72,0.00049589,120]
[378828113,1755039058905,-559.67,0.00049589,120]
[378828114,1755039058915,-400.0,0.00049589,120]
[378828115,1755039058924,-1388.28,0.00049589,120]
[378828116,1755039058934,-400.0,0.00049589,120]
[378828117,1755039058943,-400.0,0.00049589,120]
[378828118,1755039058954,-400.0,0.00049589,120]
[378828119,1755039058965,-429.86,0.00049589,120]
[378828120,1755039058975,-801.12,0.00049589,120]
[378828121,1755039058985,-271.262599,0.00049589,120]
[378828122,1755039058995,-569.34,0.00049589,120]
[378828123,1755039059004,-691.77,0.00049589,120]
[378828124,1755039059014,-1266.39,0.00049589,120]
[378828125,1755039059027,-612.31,0.00049589,120]
[378828126,1755039059036,-2000.0,0.00049589,30]
[378828127,1755039059045,-271.262599,0.00049589,120]
[378828128,1755039059056,-400.0,0.00049589,120]
[378828129,1755039059067,-668.05,0.00049589,120]
[378828130,1755039059077,-151.0,0.00049589,120]
[378828131,1755039059087,-1626.56,0.00049589,120]
[378828132,1755039059098,-400.0,0.00049589,120]
[378828133,1755039059109,-875.2,0.00049589,120]
[378828134,1755039059120,-691.24,0.00049589,120]
[378828135,1755039059129,-400.0,0.00049589,120]
[378828136,1755039059138,-760.06,0.00049589,120]
[378828137,1755039059147,-1121.31,0.00049589,120]
[378828138,1755039059157,-1597.98,0.00049589,120]
[378828139,1755039059166,-400.0,0.00049589,120]
[378828140,1755039059176,-1100.27,0.00049589,120]
[378828141,1755039059185,-532.86,0.00049589,120]
[378828142,1755039059195,-400.0,0.00049589,60]
[378828143,1755039059204,-400.0,0.00049589,120]
[378828144,1755039059214,-400.0,0.00049589,120]
[378828145,1755039059225,-151.0,0.00049589,120]
[378828146,1755039059234,-8.67533872,0.00049589,120]
[378828147,1755039059643,-919.34466128,0.00049589,120]
[378828148,1755039059653,-491.5,0.00049589,120]
[378828149,1755039059662,-400.0,0.00049589,120]
[378828150,1755039059671,-664.87,0.00049589,120]
[378828151,1755039059681,-125.0950998,0.00049589,120]
[378828152,1755039059693,-274.9049002,0.00049589,120]
[378828153,1755039059703,-493.51554931,0.00049589,120]
[378828154,1755039059714,-400.0,0.00049589,120]
[378828155,1755039059724,-417.41,0.00049589,120]
[378828156,1755039059733,-151.0,0.00049589,120]
[378828157,1755039059743,-400.0,0.00049589,120]
[378828158,1755039059752,-400.0,0.00049589,120]
[378828159,1755039059762,-400.0,0.00049589,120]
[378828160,1755039059771,-400.0,0.00049589,120]
[378828161,1755039059780,-431.42,0.00049589,120]
[378828162,1755039059789,-400.0,0.00049589,120]
[378828163,1755039059798,-400.0,0.00049589,120]
[378828164,1755039059808,-214.09,0.00049589,120]
[378828165,1755039059817,-830.86,0.00049589,120]
[378828166,1755039059826,-970.01,0.00049589,120]
[378828167,1755039059836,-400.0,0.00049589,120]
[378828168,1755039059845,-400.0,0.00049589,120]
[378828169,1755039059855,-1235.44,0.00049589,120]
[378828170,1755039059866,-400.0,0.00049589,120]